bitfinex/quotes_ETHUSD_20250112
["timestamp","ask_amount","ask_price","bid_price","bid_amount"]
[1736698037178,0.55,3283.3,3282.7,1.25]
[1736698037404,0.55,3283.0,3282.9,0.0428636]
[1736698037718,2.725134,3283.4,3282.7,1.25]
[1736698038014,2.725134,3283.4,3282.9,0.0428636]
[1736698038315,0.2725134,3283.3,3283.0,0.0428636]
[1736698038489,0.2725134,3283.3,3282.7,1.25]
[1736698038681,2.9545434,3283.3,3282.8,0.0428636]
[1736698038881,2.9545434,3283.3,3282.7,1.25]
[1736698039314,2.9545434,3283.3,3282.8,0.0428636]
[1736698039522,2.9545434,3283.3,3282.7,1.25]
[1736698039732,2.9545434,3283.3,3282.9,0.0428636]
[1736698039930,2.9545434,3283.3,3282.7,1.25]
[1736698040132,2.93165,3283.7,3283.0,0.0428636]
[1736698040335,2.93165,3283.7,3282.8,0.7766]
[1736698040629,2.93165,3283.7,3283.1,0.0428636]
[1736698040927,2.13162,3283.9,3283.2,0.0428636]
[1736698041133,2.54498246,3284.4,3283.5,0.7766]
[1736698041301,2.54498246,3284.4,3283.7,0.7766]
[1736698041505,3.04818323,3284.6,3283.7,2.13173]
[1736698041820,2.54498246,3284.6,3283.8,0.84991392]
[1736698042017,2.13097,3284.9,3283.8,0.84991392]
[1736698042199,2.13102,3284.8,3283.8,0.84991392]
[1736698043293,2.13102,3284.8,3283.8,2.20492392]
[1736698043491,2.13102,3284.8,3283.9,0.7766]
[1736698043690,2.13102,3284.8,3284.1,0.7766]
[1736698043936,2.13102,3284.8,3284.2,0.0428636]
[1736698044237,2.49472795,3284.8,3284.2,0.0428636]
[1736698045513,0.36370795,3284.8,3284.2,0.0428636]
[1736698045740,0.36370795,3284.8,3284.1,0.7766]
[1736698045910,0.36370795,3284.8,3284.3,0.04151758]
[1736698046119,0.36370795,3284.8,3284.1,0.7766]
[1736698046438,0.36370795,3284.8,3284.4,0.04151758]
[1736698046638,0.2494668,3284.7,3284.1,0.7766]
[1736698047039,2.13096,3284.9,3284.2,0.04151758]
[1736698047415,2.13096,3284.9,3284.1,0.7766]
[1736698047741,2.13096,3284.9,3284.2,0.04151758]
[1736698047914,2.13096,3284.9,3284.1,0.7766]
[1736698048115,2.13096,3284.9,3284.3,0.04151758]
[1736698048314,2.43990343,3284.9,3284.1,0.7766]
[1736698048539,2.43990343,3284.9,3284.4,0.04151758]
[1736698048743,2.43990343,3284.9,3284.1,0.7766]
[1736698048903,2.43990343,3284.9,3284.5,0.04151758]
[1736698049103,2.43990343,3284.9,3284.1,0.7766]
[1736698049305,2.43990343,3284.9,3284.2,0.04151758]
[1736698049506,0.15857426,3285.0,3284.3,0.8024]
[1736698049723,2.28948426,3285.0,3284.3,0.8024]
[1736698049915,2.28948426,3285.0,3284.4,0.04151758]
[1736698050115,0.15857426,3285.0,3284.4,0.04151758]
[1736698050311,2.13104,3284.8,3284.4,0.04151758]
[1736698050648,2.13104,3284.8,3283.5,3.0]
[1736698050649,0.213104,3284.7,3283.5,3.0]
[1736698050799,2.13145,3284.2,3283.5,0.8024]
[1736698051006,2.13161,3283.9,3283.6,0.04143888]
[1736698051404,2.13135,3284.3,3283.6,0.04143888]
[1736698051405,2.1315,3284.1,3283.6,0.04143888]
[1736698051729,0.55,3284.3,3283.6,0.04143888]
[1736698051933,2.13155,3284.0,3283.6,0.04143888]
[1736698052138,2.344705,3284.0,3283.6,0.04143888]
[1736698053142,0.213155,3284.0,3283.6,0.04143888]
[1736698053349,2.13141,3284.2,3283.6,0.04143888]
[1736698055262,2.1315,3284.1,3283.6,0.04143888]
[1736698058658,5.90915,3284.8,3283.7,0.8024]
[1736698058962,2.13119,3284.6,3283.8,0.87312155]
[1736698059167,5.68103,3284.8,3283.8,0.87312155]
[1736698059326,0.568103,3284.7,3283.8,0.83285018]
[1736698059523,5.13103,3284.8,3283.9,0.04023202]
[1736698059727,5.13103,3284.8,3284.0,0.8024]
[1736698059953,5.13103,3284.8,3284.0,0.84263202]
[1736698060751,5.13103,3284.8,3284.0,0.87307876]
[1736698061870,5.13103,3284.8,3284.0,0.84263202]
[1736698062179,0.513103,3284.7,3284.0,0.84263202]
[1736698062887,2.644193,3284.7,3284.0,0.84263202]
[1736698064182,0.513103,3284.7,3284.0,0.84263202]
[1736698064384,2.13116,3284.6,3284.0,0.84263202]
[1736698064890,2.644243,3284.7,3284.0,0.84263202]
[1736698065050,0.5644243,3284.6,3284.0,0.84263202]
[1736698066252,2.13114,3284.7,3284.0,0.84263202]
[1736698067343,0.55,3284.7,3284.0,0.84263202]
[1736698067578,2.1314,3284.3,3284.0,0.84263202]
[1736698067780,2.13148,3284.1,3284.0,0.04023202]
[1736698067958,2.13161,3284.0,3283.7,0.7952]
[1736698068289,2.13162,3283.9,3283.7,0.7952]
[1736698068458,2.13167,3283.8,3283.0,0.7922]
[1736698068863,0.55,3284.0,3283.0,0.7922]
[1736698069058,3.55,3283.8,3283.0,0.7922]
[1736698069252,0.568161,3283.7,3283.0,0.7922]
[1736698069781,2.13192,3283.5,3283.1,0.0400746]
[1736698070211,2.699931,3283.7,3283.1,0.0400746]
[1736698070748,3.0,3283.8,3283.1,0.0400746]
[1736698071101,2.13149,3284.1,3283.2,0.82265624]
[1736698071264,2.34928,3284.4,3283.4,2.92411]
[1736698071576,2.34928,3284.4,3283.6,0.7922]
[1736698071782,2.13128,3284.4,3283.6,0.7922]
[1736698071951,0.15879114,3284.5,3283.6,0.7922]
[1736698072149,0.15879114,3284.5,3283.8,0.7922]
[1736698072449,2.13129,3284.4,3283.8,0.7922]
[1736698072649,0.55,3284.4,3283.9,0.04022412]
[1736698072890,2.1315,3284.1,3283.9,0.04022412]
[1736698073189,0.55,3284.4,3283.8,0.7922]
[1736698073190,2.13137,3284.3,3283.8,0.7922]
[1736698073511,2.13143,3284.2,3283.8,0.7922]
[1736698073791,2.399573,3284.2,3283.8,0.7922]
[1736698074161,2.13143,3284.2,3283.8,0.7922]
[1736698074893,2.13143,3284.2,3283.9,0.04015329]
[1736698075191,2.1313,3284.4,3283.9,0.04015329]
[1736698076487,2.1313,3284.4,3283.8,0.7922]
[1736698076996,2.1313,3284.4,3283.9,0.04015329]
[1736698077701,0.31587911,3284.5,3284.0,0.7922]
[1736698077897,2.13117,3284.6,3284.0,0.7922]
[1736698078311,2.13117,3284.6,3284.1,0.04015329]
[1736698078668,2.13123,3284.5,3284.0,0.7922]
[1736698079077,0.55,3284.6,3284.1,0.04020839]
[1736698079502,0.55,3284.6,3284.0,0.7922]
[1736698080007,2.68115,3284.6,3284.1,0.04020839]
[1736698080177,2.41514297,3284.6,3284.1,0.04020839]
[1736698080384,0.15877965,3284.7,3284.2,0.7922]
[1736698080569,2.13105,3284.8,3284.2,0.83240839]
[1736698080771,2.13105,3284.8,3284.2,0.7922]
[1736698082142,0.1587355,3285.1,3284.3,0.04020839]
[1736698082342,2.13092,3285.0,3284.4,0.7922]
[1736698082504,0.1587355,3285.1,3284.4,0.7922]
[1736698082711,2.7730603,3285.1,3284.4,0.83240839]
[1736698082884,2.2896055,3285.1,3284.4,0.83240839]
[1736698083090,2.1309,3285.0,3284.4,0.83240839]
[1736698083418,2.13097,3284.9,3284.4,0.7922]
[1736698083606,2.13097,3284.9,3284.5,0.04020839]
[1736698084993,2.13102,3284.8,3284.5,0.04020839]
[1736698085311,0.213102,3284.7,3284.4,0.7922]
[1736698086205,2.13104,3284.8,3284.4,0.7922]
[1736698087204,2.68092,3285.0,3284.4,0.7922]
[1736698087625,2.68092,3285.0,3284.5,0.04020839]
[1736698087626,2.13101,3284.9,3284.5,0.04020839]
[1736698088608,0.55,3285.0,3284.5,0.04020839]
[1736698089003,2.2895855,3285.1,3284.4,0.7922]
[1736698089194,2.2895855,3285.1,3284.6,0.04020839]
[1736698089394,2.51854405,3285.1,3284.4,0.7922]
[1736698089601,2.51854405,3285.1,3284.7,0.04020839]
[1736698089833,2.51854405,3285.1,3284.4,0.7922]
[1736698089999,2.51854405,3285.1,3284.8,0.04020839]
[1736698090201,2.51854405,3285.1,3284.4,0.7922]
[1736698090495,0.25185441,3285.0,3284.4,0.7922]
[1736698090914,0.25185441,3285.0,3284.5,0.03983069]
[1736698092142,2.13096,3284.9,3284.5,0.03983069]
[1736698092502,2.13096,3284.9,3284.4,0.7922]
[1736698094732,0.25185441,3285.0,3284.4,0.7922]
[1736698095319,0.25185441,3285.0,3284.5,0.03946874]
[1736698095967,2.13115,3284.6,3284.5,0.03946874]
[1736698096129,5.68115,3284.6,3283.5,2.13184]
[1736698096329,5.68115,3284.6,3283.6,0.80905073]
[1736698096330,1.3007,3284.5,3283.6,0.80905073]
[1736698096531,2.13142,3284.2,3283.6,0.80905073]
[1736698097454,2.13151,3284.1,3283.6,0.80905073]
[1736698097649,0.213151,3284.0,3283.6,0.80905073]
[1736698097947,2.13149,3284.1,3283.6,0.80905073]
[1736698098135,2.13156,3284.0,3283.6,0.80905073]
[1736698098334,2.13156,3284.0,3283.6,0.7697]
[1736698098537,2.68161,3283.9,3283.1,0.7697]
[1736698099011,0.55,3283.9,3283.2,0.03960249]
[1736698099215,2.13172,3283.8,3283.2,0.03960249]
[1736698099435,0.268172,3283.7,3283.2,0.03960249]
[1736698103243,0.55,3283.9,3283.2,0.03960249]
[1736698104434,2.68166,3283.9,3283.2,0.03960249]
[1736698106549,3.7507,3284.0,3283.2,0.03960249]
[1736698106856,3.0,3284.0,3283.3,0.7697]
[1736698107443,3.0,3284.0,3283.4,0.03998806]
[1736698107660,3.0,3284.0,3283.3,0.7697]
[1736698107867,2.1315,3284.1,3283.3,0.7697]
[1736698108027,2.1315,3284.1,3283.4,0.03998806]
[1736698108227,2.1315,3284.1,3283.3,0.7697]
[1736698108459,2.1315,3284.1,3283.5,0.03998806]
[1736698108622,2.1315,3284.1,3283.3,0.7697]
[1736698108623,2.41972,3284.1,3283.3,0.7697]
[1736698108825,5.13132,3284.4,3283.7,0.761]
[1736698109155,2.13132,3284.4,3283.8,0.03998806]
[1736698109727,2.68118,3284.6,3283.9,0.761]
[1736698109930,0.55,3284.6,3283.9,0.761]
[1736698110129,2.962,3284.7,3284.0,0.03998806]
[1736698110463,0.63845757,3284.7,3283.9,0.761]
[1736698110765,2.13102,3284.8,3283.9,0.7914482]
[1736698111003,3.37588246,3285.0,3283.9,0.7914482]
[1736698111004,2.96181,3285.0,3284.1,0.761]
[1736698111169,0.55,3284.9,3284.1,0.761]
[1736698111663,0.55,3284.9,3284.2,0.03998806]
[1736698111866,2.68096,3284.9,3284.2,0.03998806]
[1736698112046,0.55,3285.1,3284.2,0.03998806]
[1736698112249,0.55,3284.9,3284.3,0.761]
[1736698112578,0.355,3285.0,3284.4,0.03998806]
[1736698113137,0.355,3285.0,3284.3,0.761]
[1736698113333,2.48591,3285.0,3284.3,0.761]
[1736698113566,2.48591,3285.0,3284.4,0.03967329]
[1736698114167,0.355,3285.0,3284.4,0.03967329]
[1736698115554,2.48592,3285.0,3284.4,0.03967329]
[1736698115744,0.248592,3284.9,3284.4,0.03967329]
[1736698118279,2.13092,3285.0,3284.4,0.03967329]
[1736698118443,0.55,3285.2,3284.4,0.03967329]
[1736698118643,2.13095,3285.0,3284.3,0.761]
[1736698119342,0.55,3285.2,3284.4,0.03867329]
[1736698119542,0.55,3285.2,3284.3,0.761]
[1736698119744,0.45989,3285.1,3284.3,0.761]
[1736698120682,2.13095,3285.0,3284.3,0.761]
[1736698121043,2.13095,3285.0,3284.4,0.0385002]
[1736698121444,2.13095,3285.0,3284.3,0.761]
[1736698121660,2.13095,3285.0,3284.5,0.0385002]
[1736698121883,0.259084,3284.9,3284.4,0.03858674]
[1736698122185,0.259084,3284.9,3284.5,0.03858674]
[1736698122482,0.259084,3284.9,3284.3,0.761]
[1736698122670,2.13095,3285.0,3284.6,0.03858674]
[1736698122865,2.13095,3285.0,3284.3,0.761]
[1736698123071,2.13095,3285.0,3284.7,0.03857101]
[1736698123238,2.13095,3285.0,3284.3,0.761]
[1736698123443,2.13095,3285.0,3284.8,0.03857101]
[1736698123642,0.259084,3284.9,3284.3,0.761]
[1736698123880,2.13095,3285.0,3284.9,0.03857101]
[1736698124068,2.13095,3285.0,3284.3,0.761]
[1736698124569,2.13095,3285.0,3284.4,0.03857101]
[1736698130682,2.68077,3285.2,3284.4,0.03857101]
[1736698131057,2.13085,3285.1,3284.4,0.03857101]
[1736698131474,2.13083,3285.2,3284.5,0.7524]
[1736698131674,2.4888781,3285.2,3284.5,0.7524]
[1736698131855,2.4888781,3285.2,3284.6,0.03851593]
[1736698133172,2.13086,3285.1,3284.6,0.03851593]
[1736698135073,0.55,3285.1,3284.6,0.03851593]
[1736698135402,2.13109,3284.7,3284.1,0.7524]
[1736698137391,2.344199,3284.7,3284.1,0.7524]
[1736698139416,0.213109,3284.7,3284.1,0.7524]
[1736698139735,2.13105,3284.8,3284.1,0.7524]
[1736698141062,2.13123,3284.5,3283.8,0.7524]
[1736698142118,2.13128,3284.4,3283.8,0.7524]
[1736698142921,0.802,3284.3,3283.8,0.7524]
[1736698143237,2.68146,3284.2,3283.4,0.7524]
[1736698143453,3.029806,3284.2,3283.4,0.7524]
[1736698144152,2.13153,3284.1,3283.4,0.7524]
[1736698144532,2.13153,3284.1,3283.5,0.03817766]
[1736698146843,0.898346,3284.2,3283.5,0.03817766]
[1736698147164,3.802,3284.6,3283.6,0.7524]
[1736698147661,2.13123,3284.5,3283.7,0.7524]
[1736698147878,2.13123,3284.5,3283.7,0.79110483]
[1736698149513,2.13123,3284.5,3283.7,0.7524]
[1736698149755,2.13123,3284.5,3283.8,0.03870483]
[1736698149947,2.724553,3284.5,3283.8,0.03870483]
[1736698150154,2.724553,3284.5,3283.7,0.7524]
[1736698150472,2.64272712,3284.5,3283.8,0.03870483]
[1736698150761,2.64272712,3284.5,3283.7,0.7524]
[1736698151076,2.64272712,3284.5,3283.8,0.03870483]
[1736698151366,0.593323,3284.5,3283.7,0.7524]
[1736698151562,2.13132,3284.4,3283.7,0.7524]
[1736698151718,2.13132,3284.4,3283.8,0.03870483]
[1736698151913,0.3526643,3284.4,3283.8,0.03870483]
[1736698152112,0.55,3284.4,3283.7,0.7524]
[1736698152418,2.13169,3283.8,3283.4,0.8147]
[1736698154146,0.55,3283.7,3282.7,3.14438869]
[1736698154463,2.13187,3283.5,3282.8,0.8016]
[1736698154758,2.13175,3283.7,3282.8,0.8016]
[1736698155359,2.13175,3283.7,3282.8,0.8320579]
[1736698155766,2.13175,3283.7,3282.8,0.8016]
[1736698156071,2.13175,3283.7,3282.8,0.83205792]
[1736698158326,2.13181,3283.6,3282.8,0.8016]
[1736698158730,2.13181,3283.6,3282.8,0.83205793]
[1736698159233,2.13181,3283.6,3282.8,0.8016]
[1736698159525,2.13181,3283.6,3282.9,0.03894093]
[1736698160324,2.13168,3283.8,3283.0,0.8016]
[1736698160676,2.13168,3283.8,3283.2,0.8016]
[1736698161186,2.13168,3283.8,3283.3,0.03894093]
[1736698161594,2.13168,3283.8,3283.4,0.03894093]
[1736698161793,2.13168,3283.8,3283.2,0.8016]
[1736698162081,2.13168,3283.8,3283.5,0.03894093]
[1736698162280,3.023418,3283.8,3283.2,0.8016]
[1736698162622,2.13168,3283.8,3283.6,0.03894093]
[1736698162795,2.13168,3283.8,3283.2,0.8016]
[1736698163000,2.13168,3283.8,3283.7,0.03894093]
[1736698163195,2.13168,3283.8,3283.2,0.8016]
[1736698163783,2.91726,3284.0,3283.2,0.8016]
[1736698164031,2.13156,3284.0,3283.4,0.8016]
[1736698164414,2.13156,3284.0,3283.5,0.03983016]
[1736698164805,2.13156,3284.0,3283.4,0.8016]
[1736698165132,0.55,3284.1,3283.4,0.8016]
[1736698165335,2.13161,3283.9,3283.4,0.8016]
[1736698165835,2.13161,3283.9,3283.5,0.03979867]
[1736698170605,0.98419,3284.1,3283.5,0.03979867]
[1736698170942,0.55,3283.9,3283.5,0.03979867]
[1736698171342,0.55,3283.9,3283.1,0.8156]
[1736698171641,2.1318,3283.7,3283.2,0.03976718]
[1736698171809,0.939973,3283.9,3283.2,0.03976718]
[1736698172010,2.13188,3283.5,3283.2,0.03976718]
[1736698174348,2.13176,3283.7,3283.2,0.03976718]
[1736698174645,2.13183,3283.6,3283.2,0.03976718]
[1736698184715,2.1317,3283.8,3283.2,0.03976718]
[1736698184908,2.1317,3283.8,3283.1,0.8156]
[1736698185609,2.1317,3283.8,3283.2,0.04016866]
[1736698186418,2.1317,3283.8,3283.1,0.8156]
[1736698186597,2.13175,3283.7,3283.1,0.8156]
[1736698186796,2.13175,3283.7,3283.2,0.04012142]
[1736698187015,0.939973,3283.9,3283.2,0.04012142]
[1736698187016,2.521603,3283.9,3283.2,0.04012142]
[1736698187215,2.1317,3283.8,3283.2,0.04012142]
[1736698187454,2.1317,3283.8,3283.1,0.8156]
[1736698188615,2.13174,3283.7,3283.1,0.8156]
[1736698189165,2.13174,3283.7,3283.2,0.04006632]
[1736698191031,2.13174,3283.7,3283.1,0.8156]
[1736698191566,2.13174,3283.7,3283.2,0.04006632]
[1736698193059,3.0,3283.9,3283.2,0.04006632]
[1736698193259,3.0,3283.9,3283.3,0.7748]
[1736698193463,2.13169,3283.8,3283.3,0.7748]
[1736698195111,2.13174,3283.7,3283.3,0.7748]
[1736698195348,2.13174,3283.7,3283.4,0.03995612]
[1736698196066,2.1318,3283.6,3283.4,0.03995612]
[1736698196314,2.1318,3283.6,3283.3,0.7748]
[1736698200668,0.7908,3283.5,3282.9,0.7748]
[1736698200850,0.55,3283.4,3282.5,0.7748]
[1736698201050,3.55,3283.4,3282.5,0.7748]
[1736698201216,2.13234,3282.8,3282.5,0.7748]
[1736698201427,2.13233,3282.8,3282.5,0.7748]
[1736698204643,2.13233,3282.8,3282.6,0.03851946]
[1736698204983,2.92301,3283.0,3282.5,0.7748]
[1736698205215,2.92301,3283.0,3282.7,0.03851946]
[1736698205485,2.13226,3282.9,3282.5,0.7748]
[1736698206083,2.13226,3282.9,3282.6,0.03851946]
[1736698206491,2.13226,3282.9,3282.5,0.7748]
[1736698206846,2.13226,3282.9,3282.7,0.03910209]
[1736698207045,2.13226,3282.9,3282.5,0.7748]
[1736698207456,2.13226,3282.9,3282.6,0.03910209]
[1736698207779,2.13226,3282.9,3282.5,0.7748]
[1736698207964,2.13226,3282.9,3282.7,0.03910209]
[1736698208165,2.13226,3282.9,3282.5,0.7748]
[1736698208349,2.13226,3282.9,3282.8,0.03910209]
[1736698208546,2.13226,3282.9,3282.5,0.7748]
[1736698208736,2.13226,3282.9,3282.8,0.03910209]
[1736698208938,2.13226,3282.9,3282.5,0.7748]
[1736698209149,2.13226,3282.9,3282.8,0.03910209]
[1736698209353,2.13226,3282.9,3282.5,0.7748]
[1736698209682,2.13226,3282.9,3282.8,0.03910209]
[1736698209885,2.13226,3282.9,3282.5,0.7748]
[1736698210093,2.13226,3282.9,3282.6,0.03910209]
[1736698211079,1.3382,3283.2,3282.6,0.03910209]
[1736698211279,0.55,3283.1,3282.6,0.03910209]
[1736698211581,2.13219,3283.0,3282.7,0.03967687]
[1736698211784,2.13219,3283.0,3282.5,0.7748]
[1736698211990,2.13219,3283.0,3282.8,0.03967687]
[1736698212136,2.13219,3283.0,3282.5,0.7748]
[1736698212480,2.13219,3283.0,3282.9,0.03967687]
[1736698212680,2.53147118,3283.0,3282.5,0.7748]
[1736698213117,2.13219,3283.0,3282.6,0.03967687]
[1736698213902,2.13219,3283.0,3282.5,0.7748]
[1736698214056,0.7882,3283.2,3282.7,0.03964537]
[1736698214280,2.92016,3283.4,3282.7,0.03964537]
[1736698214460,2.13196,3283.4,3282.8,0.8232]
[1736698214722,2.13196,3283.4,3282.8,0.86284537]
[1736698215794,3.07886165,3283.6,3282.8,0.8232]
[1736698215993,0.15883165,3283.6,3283.0,0.8232]
[1736698216191,2.13175,3283.7,3283.0,0.8232]
[1736698216416,0.7882,3283.1,3282.4,1.96e-06]
[1736698216697,2.13227,3282.9,3282.4,1.96e-06]
[1736698217396,0.7882,3283.1,3282.4,1.96e-06]
[1736698217612,2.13227,3282.9,3282.4,1.96e-06]
[1736698219805,2.13227,3282.9,3282.5,0.0391178]
[1736698221696,2.13234,3282.8,3282.5,0.0391178]
[1736698225105,2.13221,3283.0,3282.5,0.0391178]
[1736698225813,2.13221,3283.0,3282.6,0.8195]
[1736698226014,0.62483409,3283.3,3282.6,0.8195]
[1736698226015,1.39753409,3283.3,3282.6,0.8195]
[1736698226317,2.13227,3282.9,3282.7,0.03942491]
[1736698226532,1.20398792,3283.2,3282.7,0.03942491]
[1736698226533,2.13232,3282.8,3282.7,0.03942491]
[1736698226823,2.90502,3282.8,3282.4,1.96e-06]
[1736698227126,2.13239,3282.7,3282.4,1.96e-06]
[1736698227416,2.18991992,3282.8,3282.4,1.96e-06]
[1736698228910,2.13248,3282.6,3282.4,1.96e-06]
[1736698232165,3.73359084,3282.8,3282.4,1.96e-06]
[1736698232292,2.50574908,3282.7,3282.4,1.96e-06]
[1736698233345,2.13246,3282.6,3282.4,1.96e-06]
[1736698236017,2.13252,3282.5,3282.4,1.96e-06]
[1736698236801,4.71500792,3282.5,3282.4,1.96e-06]
[1736698237919,7.72250792,3282.5,3282.4,1.96e-06]
[1736698238116,8.53959462,3282.5,3282.4,1.96e-06]
[1736698238958,8.53209462,3282.5,3282.4,1.96e-06]
[1736698245862,5.13252,3282.5,3282.4,1.96e-06]
[1736698247278,2.13252,3282.5,3282.4,1.96e-06]
[1736698256749,5.68252,3282.5,3282.4,1.96e-06]
[1736698256956,6.46752,3282.5,3282.4,1.96e-06]
[1736698257659,9.00962381,3282.5,3282.4,1.96e-06]
[1736698258003,10.36462694,3282.5,3282.4,1.96e-06]
[1736698261791,7.82252313,3282.5,3282.4,1.96e-06]
[1736698262488,10.36462694,3282.5,3282.4,1.96e-06]
[1736698263560,10.34212694,3282.5,3282.4,1.96e-06]
[1736698263767,8.22462381,3282.5,3282.4,1.96e-06]
[1736698264101,5.68252,3282.5,3282.4,1.96e-06]
[1736698265449,2.13252,3282.5,3282.4,1.96e-06]
[1736698265647,2.54210381,3282.7,3282.5,0.7619]
[1736698266166,0.55,3282.8,3282.5,0.7619]
[1736698266368,2.13245,3282.6,3282.5,0.7619]
[1736698266981,1.20398792,3283.0,3282.5,0.7619]
[1736698267164,3.0,3282.9,3282.5,0.7619]
[1736698267550,2.13233,3282.8,3282.6,0.04097667]
[1736698270196,2.13233,3282.8,3282.5,0.7619]
[1736698270356,2.13233,3282.8,3282.7,0.04097667]
[1736698270557,2.13233,3282.8,3282.5,0.7619]
[1736698270795,2.13233,3282.8,3282.7,0.04097667]
[1736698271097,2.13233,3282.8,3282.5,0.7619]
[1736698271598,2.13239,3282.7,3282.6,0.04097667]
[1736698271902,2.13252,3282.5,3282.4,1.96e-06]
[1736698276203,2.13239,3282.7,3282.4,1.96e-06]
[1736698276520,2.54210381,3282.8,3282.5,0.7647]
[1736698276968,5.13228,3282.9,3282.6,0.04060635]
[1736698277166,5.13228,3282.9,3282.5,0.7647]
[1736698277361,2.13215,3283.1,3282.7,0.04060635]
[1736698277561,2.13219,3283.0,3282.5,0.7647]
[1736698277799,2.13219,3283.0,3282.8,0.04060635]
[1736698278012,2.13219,3283.0,3282.5,0.7647]
[1736698278215,2.13219,3283.0,3282.9,0.04060635]
[1736698278380,2.54210381,3283.2,3283.0,0.7539]
[1736698279002,2.54210381,3283.2,3283.1,0.04040152]
[1736698279215,2.54210381,3283.2,3283.1,0.79430152]
[1736698279433,2.54210381,3283.6,3283.1,0.79430152]
[1736698280061,2.13161,3283.9,3283.1,0.79430152]
[1736698280311,2.54210381,3284.1,3283.2,0.78435596]
[1736698280464,2.13154,3284.1,3283.2,0.7539]
[1736698280806,2.13154,3284.1,3283.3,0.79391557]
[1736698281359,2.13137,3284.3,3283.3,0.79391557]
[1736698281564,2.13137,3284.3,3283.4,0.78435235]
[1736698282003,3.0,3284.4,3283.5,0.04001557]
[1736698282213,2.13149,3284.1,3283.6,0.7539]
[1736698282412,2.13149,3284.1,3283.6,0.79391557]
[1736698285379,0.55,3284.4,3283.6,0.79391557]
[1736698285783,2.13148,3284.1,3283.6,0.79391557]
[1736698293873,2.13143,3284.2,3283.6,0.79391557]
[1736698294030,2.13148,3284.1,3283.6,0.79391557]
[1736698296351,3.0,3284.5,3283.6,0.79391557]
[1736698296561,2.13142,3284.2,3283.6,0.79391557]
[1736698298652,0.355,3284.4,3283.6,0.79391557]
[1736698298858,2.13135,3284.3,3283.6,0.79391557]
[1736698299987,2.13143,3284.2,3283.6,0.79391557]
[1736698302047,2.68118,3284.6,3283.6,0.79391557]
[1736698302253,2.13136,3284.3,3283.6,0.79391557]
[1736698304686,2.13137,3284.3,3283.6,0.79391557]
[1736698308754,2.13137,3284.3,3283.8,0.7632]
[1736698309190,2.13137,3284.3,3283.9,0.03836202]
[1736698309750,2.13137,3284.3,3283.8,0.7632]
[1736698309943,2.13137,3284.3,3284.0,0.03822822]
[1736698310150,2.13137,3284.3,3283.8,0.7632]
[1736698310345,2.13137,3284.3,3283.9,0.03822822]
[1736698310910,2.13137,3284.3,3284.0,0.7632]
[1736698311117,2.13124,3284.5,3284.0,0.7632]
[1736698311259,0.15860311,3284.7,3284.0,0.7632]
[1736698311459,0.39742031,3284.6,3284.1,0.03822822]
[1736698311703,2.13122,3284.5,3284.1,0.03822822]
[1736698311872,2.13135,3284.3,3284.1,0.03822822]
[1736698313766,2.13135,3284.3,3284.0,0.7632]
[1736698313961,2.13124,3284.5,3284.1,0.03822822]
[1736698314606,2.13114,3284.7,3284.1,0.03822822]
[1736698315407,2.13115,3284.6,3284.1,0.03822822]
[1736698315583,2.13115,3284.6,3284.0,0.7632]
[1736698315907,2.13115,3284.6,3284.1,0.03822822]
[1736698316398,2.13115,3284.6,3284.0,0.7632]
[1736698317107,2.13115,3284.6,3284.1,0.03792914]
[1736698317606,2.13115,3284.6,3284.0,0.7632]
[1736698317903,2.13115,3284.6,3284.2,0.03792914]
[1736698318064,2.13131,3284.4,3284.0,0.7632]
[1736698318420,2.13137,3284.3,3283.7,0.7632]
[1736698318729,2.13137,3284.3,3284.1,0.03792127]
[1736698318869,2.13137,3284.3,3283.7,0.7632]
[1736698319383,2.13137,3284.3,3283.8,0.03792127]
[1736698319571,2.13137,3284.3,3283.7,0.7632]
[1736698319906,2.13137,3284.3,3283.8,0.03792127]
[1736698320303,2.13137,3284.3,3283.7,0.7632]
[1736698320605,2.474557,3284.3,3283.7,0.7632]
[1736698320809,2.474557,3284.3,3283.8,0.03792127]
[1736698321109,2.474557,3284.3,3283.1,0.7632]
[1736698321110,0.55,3284.2,3283.1,0.7632]
[1736698321293,2.13154,3284.0,3283.9,0.03792127]
[1736698321494,2.1317,3283.8,3283.1,0.7632]
[1736698321869,2.1317,3283.8,3283.2,0.03779534]
[1736698322406,0.55,3284.0,3283.2,0.03779534]
[1736698322608,2.132,3283.3,3283.2,0.03779534]
[1736698322792,2.13212,3283.2,3282.9,0.7632]
[1736698322999,2.1322,3283.0,3282.6,0.7632]
[1736698323197,0.55,3283.2,3283.0,0.03819674]
[1736698323400,2.68213,3283.1,3282.4,0.76320196]
[1736698323583,1.3005,3283.0,3282.4,1.96e-06]
[1736698323771,2.13232,3282.8,3282.4,1.96e-06]
[1736698324106,0.343263,3282.9,3282.4,1.96e-06]
[1736698324107,2.13251,3282.6,3282.4,1.96e-06]
[1736698324424,0.343263,3282.9,3282.4,1.96e-06]
[1736698324627,2.13251,3282.6,3282.4,1.96e-06]
[1736698325645,2.13252,3282.5,3282.4,1.96e-06]
[1736698325997,3.096272,3282.5,3282.4,1.96e-06]
[1736698326202,3.646272,3282.5,3282.4,1.96e-06]
[1736698328409,6.646272,3282.5,3282.4,1.96e-06]
[1736698330040,7.26860457,3282.5,3282.4,1.96e-06]
[1736698335720,5.895772,3282.5,3282.4,1.96e-06]
[1736698340239,5.345772,3282.5,3282.4,1.96e-06]
[1736698346123,5.895772,3282.5,3282.4,1.96e-06]
[1736698347324,9.27062322,3282.5,3282.4,1.96e-06]
[1736698347622,9.45192146,3282.5,3282.4,1.96e-06]
[1736698348501,9.8097513,3282.5,3282.4,1.96e-06]
[1736698349104,9.96098322,3282.5,3282.4,1.96e-06]
[1736698352065,7.26760008,3282.5,3282.4,1.96e-06]
[1736698352266,9.8097513,3282.5,3282.4,1.96e-06]
[1736698354968,9.09642146,3282.5,3282.4,1.96e-06]
[1736698355851,9.65392146,3282.5,3282.4,1.96e-06]
[1736698356672,9.43692146,3282.5,3282.4,1.96e-06]